bitfinex-derivatives/quotes_SOLF0:USTF0_20220110
["timestamp","ask_amount","ask_price","bid_price","bid_amount"]
[1641821470136,2.94334221,135.91,135.83,7.638]
[1641821470335,2.34233061,135.91,135.83,15.3663649]
[1641821470535,2.34233061,135.9,135.83,15.3663649]
[1641821470935,7.35699834,135.92,135.83,15.3663649]
[1641821470936,2.34233061,135.89,135.83,15.3663649]
[1641821471335,0.6010116,135.91,135.83,15.3663649]
[1641821471535,0.6010116,135.93,135.83,15.3663649]
[1641821471737,0.6010116,135.91,135.84,67.9221]
[1641821471935,1.82178597,135.9,135.84,67.9221]
[1641821472636,1.82178597,135.9,135.84,73.81118737]
[1641821472837,1.82178597,135.9,135.84,7.72808737]
[1641821473038,1.82178597,135.92,135.84,7.72808737]
[1641821473239,2.42279757,135.92,135.84,5.88908737]
[1641821473640,1.82178597,135.92,135.84,5.88908737]
[1641821473837,2.42279757,135.92,135.84,9.28807577]
[1641821474037,2.42279757,135.92,135.84,5.88908737]
[1641821474336,1.82178597,135.92,135.84,5.88908737]
[1641821474539,1.82178597,135.91,135.84,5.88908737]
[1641821475138,1.82178597,135.91,135.84,9.28807577]
[1641821475338,2.42279757,135.91,135.84,5.88908737]
[1641821475537,1.82178597,135.91,135.84,5.88908737]
[1641821475739,2.42279757,135.91,135.84,9.28807577]
[1641821475938,1.82178597,135.9,135.87,3.3989884]
[1641821476140,1.82178597,135.9,135.87,6.482]
[1641821476939,1.82178597,135.9,135.88,4.16210272]
[1641821477238,1.82178597,135.93,135.88,4.16210272]
[1641821477438,0.6010116,135.93,135.88,4.16210272]
[1641821478039,1.82114941,135.92,135.86,4.16210272]
[1641821478443,0.6010116,135.91,135.86,4.16210272]
[1641821479341,0.6010116,135.91,135.87,2.46854023]
[1641821479741,22.81881133,135.96,135.87,2.46854023]
[1641821479942,22.81881133,135.96,135.88,4.16210272]
[1641821480348,22.81881133,135.96,135.88,10.98810272]
[1641821480546,2.42201395,135.95,135.88,10.98810272]
[1641821480748,1.82100235,135.95,135.88,10.98810272]
[1641821480947,2.42201395,135.94,135.89,6.63064295]
[1641821481349,1.82100235,135.93,135.9,4.16210272]
[1641821481750,0.6010116,135.91,135.9,4.16210272]
[1641821482347,2.42201395,135.91,135.88,4.16210272]
[1641821482746,2.42201395,135.9,135.88,4.16210272]
[1641821483149,1.82100235,135.9,135.88,4.16210272]
[1641821483351,1.82100235,135.89,135.88,4.16210272]
[1641821483748,0.6010116,135.92,135.88,4.16210272]
[1641821484048,1.82100235,135.91,135.86,4.16210272]
[1641821485047,1.82100235,135.91,135.86,15.44210272]
[1641821485851,2.42201395,135.91,135.87,4.16210272]
[1641821486349,1.82100235,135.9,135.87,9.82210272]
[1641821486949,1.82100235,135.9,135.88,4.16210272]
[1641821487850,0.6010116,135.91,135.88,4.16210272]
[1641821488052,2.42201395,135.92,135.88,4.16210272]
[1641821488454,1.82100235,135.9,135.88,4.16210272]
[1641821488652,2.42201395,135.9,135.88,4.16210272]
[1641821488852,0.6010116,135.9,135.88,4.16210272]
[1641821489255,1.82100235,135.89,135.88,4.16210272]
[1641821490655,2.42201395,135.89,135.88,4.16210272]
[1641821490855,6.42201395,135.89,135.88,4.16210272]
[1641821491056,6.42201395,135.89,135.84,15.46397737]
[1641821491255,0.6010116,135.86,135.82,86.36317737]
[1641821491458,0.6010116,135.87,135.82,86.36317737]
[1641821491658,0.6010116,135.86,135.82,86.36317737]
[1641821491856,91.69077737,135.92,135.82,86.36317737]
[1641821492058,0.6010116,135.87,135.83,2.47511478]
[1641821492558,0.6010116,135.87,135.84,4.16432136]
[1641821493459,0.6010116,135.85,135.84,4.16432136]
[1641821494463,3.67279157,135.85,135.83,4.16432136]
[1641821494660,0.6010116,135.84,135.8,3.06587737]
[1641821494864,7.36187286,135.84,135.8,3.06587737]
[1641821495064,0.6010116,135.81,135.8,3.06587737]
[1641821495264,0.6010116,135.81,135.75,29.4874712]
[1641821496164,0.6010116,135.83,135.78,3.3989884]
[1641821496363,0.6010116,135.83,135.78,8.956]
[1641821496564,0.6010116,135.82,135.78,8.956]
[1641821497366,0.6010116,135.79,135.76,10.06167828]
[1641821497565,6.532,135.79,135.76,10.06167828]
[1641821497766,0.6010116,135.77,135.76,10.06167828]
[1641821497965,0.6010116,135.77,135.76,7.828e-05]
[1641821498166,4.6010116,135.77,135.74,41.26476672]
[1641821498567,0.6010116,135.75,135.74,41.26476672]
[1641821498966,0.6010116,135.75,135.69,41.26476672]
[1641821499167,4.0,135.78,135.69,41.26476672]
[1641821499368,0.6010116,135.73,135.69,41.26476672]
[1641821499967,0.6010116,135.73,135.67,56.42760459]
[1641821500569,4.0,135.77,135.67,56.42760459]
[1641821500770,0.6010116,135.73,135.67,44.66375512]
[1641821500969,0.6010116,135.73,135.67,3.3989884]
[1641821501469,0.6010116,135.72,135.7,50.0]
[1641821501670,1.841,135.79,135.7,50.0]
[1641821501671,0.6010116,135.73,135.7,50.0]
[1641821502571,0.6010116,135.71,135.7,50.0]
[1641821503874,4.0,135.77,135.7,50.0]
[1641821504173,1.841,135.79,135.7,59.7039884]
[1641821504372,0.6010116,135.77,135.7,56.305]
[1641821504573,0.6010116,135.76,135.7,56.305]
[1641821504773,11.36349913,135.8,135.7,56.305]
[1641821504972,0.6010116,135.75,135.71,66.4987]
[1641821505173,4.0,135.79,135.71,66.4987]
[1641821505374,0.6010116,135.75,135.71,66.4987]
[1641821505673,0.6010116,135.76,135.71,66.4987]
[1641821505876,0.6010116,135.76,135.71,74.8477]
[1641821506075,66.4759,135.81,135.71,74.8477]
[1641821506275,0.6010116,135.78,135.71,74.8477]
[1641821506476,0.6010116,135.76,135.71,74.8477]
[1641821507074,0.6010116,135.77,135.71,74.8477]
[1641821507275,0.6010116,135.76,135.71,74.8477]
[1641821507674,0.6010116,135.74,135.71,74.8477]
[1641821507878,0.6010116,135.76,135.71,74.8477]
[1641821508076,4.0,135.8,135.71,74.8477]
[1641821508278,0.6010116,135.75,135.71,74.8477]
[1641821508877,0.6010116,135.77,135.71,74.8477]
[1641821509078,0.6010116,135.76,135.71,74.8477]
[1641821509476,7.36241487,135.82,135.72,3.3989884]
[1641821509878,7.36241487,135.82,135.72,9.29307918]
[1641821510079,0.6010116,135.78,135.73,4.01395856]
[1641821510680,11.36241487,135.82,135.73,4.01395856]
[1641821510879,0.6010116,135.76,135.73,4.01395856]
[1641821511080,0.6010116,135.75,135.73,4.01395856]
[1641821511484,7.716,135.77,135.73,4.01395856]
[1641821511682,7.716,135.77,135.72,4.01395856]
[1641821512081,7.716,135.77,135.74,4.01395856]
[1641821512280,0.6010116,135.75,135.74,4.01395856]
[1641821512682,0.6010116,135.75,135.72,4.01395856]
[1641821512883,7.36404139,135.79,135.73,3.3989884]
[1641821513083,7.36241487,135.82,135.73,3.3989884]
[1641821513284,0.6010116,135.76,135.72,4.01395856]
[1641821513488,0.6010116,135.76,135.71,66.4987]
[1641821513489,0.6010116,135.73,135.7,50.0]
[1641821513685,8.628,135.74,135.7,50.0]
[1641821513884,0.6010116,135.72,135.7,50.0]
[1641821515088,0.6010116,135.73,135.7,53.3989884]
[1641821515387,0.6010116,135.73,135.7,50.0]
[1641821517389,0.6010116,135.71,135.7,50.0]
[1641821517590,9.3470116,135.71,135.7,50.0]
[1641821518690,0.6010116,135.71,135.7,50.0]
[1641821521591,11.4460116,135.71,135.7,50.0]
[1641821521794,11.4460116,135.71,135.7,20.6106]
[1641821522092,11.4460116,135.71,135.64,41.26476672]
[1641821522295,4.0,135.69,135.64,41.26476672]
[1641821522493,0.6010116,135.65,135.64,41.26476672]
[1641821522698,11.0030116,135.65,135.62,66.9069]
[1641821522894,0.6010116,135.63,135.62,10.02350674]
[1641821523494,4.6010116,135.63,135.62,10.02350674]
[1641821523894,4.6010116,135.63,135.61,10.02350674]
[1641821524095,4.6010116,135.62,135.59,41.26476672]
[1641821524296,4.6010116,135.6,135.59,19.66646672]
[1641821524794,4.6010116,135.6,135.55,61.80216161]
[1641821524995,0.6010116,135.56,135.54,68.3872]
[1641821525196,8.336,135.59,135.51,66.0509]
[1641821525394,7.37381558,135.61,135.51,66.0509]
[1641821525395,0.6010116,135.53,135.51,66.0509]
[1641821525795,0.6010116,135.55,135.51,66.0509]
[1641821525997,7.37381558,135.61,135.51,66.0509]
[1641821526195,0.6010116,135.61,135.56,15.53969818]
[1641821526395,0.6010116,135.63,135.57,3.3989884]
[1641821526595,0.6010116,135.58,135.56,15.53969818]
[1641821526797,0.6010116,135.57,135.56,15.53969818]
[1641821526995,0.6010116,135.57,135.53,3.3989884]
[1641821527195,4.0,135.61,135.52,97.30327009]
[1641821527397,9.206,135.59,135.52,97.30327009]
[1641821527596,0.6010116,135.58,135.52,100.70225849]
[1641821527795,0.6010116,135.58,135.52,15.17466125]
[1641821527995,4.0,135.62,135.52,15.17466125]
[1641821528397,4.0,135.57,135.52,15.17466125]
[1641821528597,0.6010116,135.53,135.52,15.17466125]
[1641821528797,9.9220116,135.53,135.52,15.17466125]
[1641821529698,9.9220116,135.53,135.49,10.98]
[1641821530296,9.321,135.53,135.49,10.98]
[1641821530496,4.0,135.59,135.49,10.98]
[1641821530697,0.6010116,135.56,135.51,3.3989884]
[1641821530898,0.6010116,135.56,135.53,3.3989884]
[1641821531096,0.6010116,135.56,135.51,5.815]
[1641821531298,0.6010116,135.56,135.52,3.3989884]
[1641821531499,0.6010116,135.56,135.51,5.815]
[1641821531697,4.0,135.61,135.55,4.0]
[1641821531900,4.0,135.61,135.55,8.413]
[1641821533598,7.37191301,135.64,135.57,4.0]
[1641821533901,76.9839,135.7,135.58,4.0]
[1641821534098,7.36946829,135.69,135.6,4.0]
[1641821534300,7.36946829,135.69,135.58,7.72]
[1641821534301,4.0,135.7,135.59,65.4017]
[1641821534601,7.36973985,135.68,135.59,65.4017]
[1641821535500,11.36973985,135.68,135.59,65.4017]
[1641821535700,7.36973985,135.68,135.59,65.4017]
[1641821535901,1.843,135.68,135.59,75.30178686]
[1641821536101,11.36892524,135.7,135.59,71.30178686]
[1641821536300,11.36892524,135.7,135.59,73.14478686]
[1641821536500,7.36892524,135.7,135.59,67.2447]
[1641821536703,4.0,135.69,135.59,67.2447]
[1641821536901,10.01173338,135.69,135.59,65.4017]
[1641821537103,4.0,135.68,135.59,65.4017]
[1641821537302,12.42,135.68,135.59,65.4017]
[1641821537502,4.0,135.66,135.57,66.8107]
[1641821537702,4.0,135.6,135.57,66.8107]
[1641821537903,4.0,135.6,135.55,137.7008]
[1641821537904,5.683,135.6,135.55,137.7008]
[1641821538104,5.683,135.6,135.54,18.34892524]
[1641821538105,9.683,135.6,135.52,61.80216161]
[1641821538502,4.0,135.59,135.51,66.311]
[1641821538704,9.683,135.6,135.51,66.311]
[1641821539906,5.683,135.6,135.51,66.311]
[1641821540310,9.683,135.6,135.51,66.311]
[1641821540509,5.683,135.6,135.51,66.311]
[1641821540708,1.844,135.63,135.51,75.391]
[1641821540908,7.37191301,135.64,135.52,4.0]
[1641821541110,9.21491301,135.64,135.52,4.0]
[1641821541311,9.21491301,135.64,135.52,9.9031259]
[1641821541509,11.37191301,135.64,135.52,11.7461259]
[1641821541708,11.37191301,135.64,135.52,21.02153276]
[1641821542109,7.37300007,135.62,135.52,21.02153276]
[1641821542708,7.37300007,135.62,135.55,15.49217678]
[1641821542908,11.37300007,135.62,135.55,15.49217678]
[1641821543308,7.37300007,135.62,135.55,15.49217678]
[1641821543808,7.37300007,135.62,135.56,4.01969511]
[1641821544210,4.0,135.59,135.57,15.49217678]
[1641821544410,10.105,135.59,135.57,15.49217678]
[1641821544612,10.105,135.59,135.58,4.01969511]
[1641821544811,6.105,135.59,135.58,4.01969511]
[1641821545516,10.105,135.59,135.57,2.45873783]
[1641821545711,4.0,135.58,135.55,15.49217678]
[1641821545912,4.0,135.57,135.52,10.0090063]
[1641821546111,4.0,135.56,135.52,10.0090063]
[1641821546313,6.101,135.56,135.52,10.0090063]
[1641821546711,6.101,135.56,135.53,2.81583013]
[1641821548413,6.101,135.56,135.51,2.81583013]
[1641821548613,4.0,135.52,135.51,2.81583013]
[1641821548813,12.237,135.52,135.51,2.81583013]
[1641821549313,8.237,135.52,135.51,2.81583013]
[1641821549816,8.237,135.52,135.5,2.81583013]
[1641821550015,8.237,135.52,135.51,2.81583013]
[1641821550214,4.0,135.56,135.51,2.81583013]
[1641821550415,4.0,135.56,135.5,8.072]
[1641821551015,4.0,135.53,135.51,2.81583013]
[1641821551214,4.0,135.52,135.51,2.81583013]
[1641821551615,4.0,135.52,135.51,3.013e-05]
[1641821551816,11.37925691,135.52,135.46,41.46638536]
[1641821552016,4.0,135.47,135.46,41.46638536]
[1641821552215,10.517,135.47,135.46,36.92238536]
[1641821552417,10.517,135.47,135.44,25.18455113]
[1641821552616,4.0,135.46,135.44,10.0090063]
[1641821552816,10.517,135.47,135.46,10.0090063]
[1641821553018,17.89843569,135.47,135.39,11.04]
[1641821553217,4.0,135.44,135.38,72.86216161]
[1641821553417,1.845,135.46,135.4,2.67317277]
[1641821553618,17.89843569,135.47,135.4,2.67317277]
[1641821553818,17.89843569,135.47,135.39,2.67317277]
[1641821554319,17.89843569,135.47,135.4,2.67317277]
[1641821554518,4.0,135.46,135.4,2.67317277]
[1641821554719,4.0,135.43,135.41,2.67317277]
[1641821554921,5.843,135.43,135.41,2.67317277]
[1641821555321,5.843,135.43,135.42,2.67317277]
[1641821555921,7.38307062,135.44,135.42,2.67317277]
[1641821556122,11.38116327,135.47,135.42,2.67317277]
[1641821556721,7.38116327,135.47,135.43,2.67317277]
[1641821556922,7.38116327,135.47,135.43,10.30017277]
[1641821557122,7.38116327,135.47,135.44,2.67317277]
[1641821557625,7.38116327,135.47,135.45,2.67317277]
[1641821557823,9.22480148,135.5,135.45,2.67317277]
[1641821558024,7.37980148,135.5,135.46,2.67317277]
[1641821558222,11.37980148,135.5,135.46,2.67317277]
[1641821558423,11.37980148,135.5,135.47,2.67317277]
[1641821558625,7.37980148,135.5,135.47,2.67317277]
[1641821558824,7.37980148,135.5,135.48,2.67317277]
[1641821559223,11.37789582,135.53,135.48,2.67317277]
[1641821559425,4.0,135.52,135.49,2.67317277]
[1641821559926,7.37789582,135.53,135.5,2.67317277]
[1641821560129,4.0,135.51,135.5,2.67317277]
[1641821561027,1.844,135.52,135.5,2.67317277]
[1641821561226,7.37789582,135.53,135.5,2.67317277]
[1641821561429,7.37789582,135.53,135.51,2.67317277]
[1641821562029,7.37789582,135.53,135.52,2.67317277]
[1641821563830,11.37789582,135.53,135.52,2.67317277]
[1641821564230,7.37789582,135.53,135.52,2.67317277]
[1641821564829,1.844,135.59,135.52,2.67317277]
[1641821564830,7.37599115,135.57,135.52,2.67317277]
[1641821565431,7.37599115,135.57,135.5,6.2]
[1641821565432,7.37599115,135.57,135.53,2.67317277]
[1641821565633,7.37599115,135.57,135.53,10.14817277]
[1641821565832,7.37599115,135.57,135.54,2.67317277]
[1641821566431,7.37599115,135.57,135.55,2.67317277]
[1641821566834,7.37599115,135.57,135.55,10.59317277]
[1641821567033,7.37599115,135.57,135.56,2.67317277]
[1641821567835,1.844,135.63,135.56,2.67317277]
[1641821568034,7.37408746,135.6,135.56,2.67317277]
[1641821568234,7.37408746,135.6,135.57,2.67317277]
[1641821568433,7.37408746,135.6,135.57,10.16417277]
[1641821568635,4.17100373,135.62,135.57,10.16417277]
[1641821568836,7.37218475,135.64,135.58,2.67317277]
[1641821569436,7.37272828,135.63,135.58,2.67317277]
[1641821569636,4.0,135.62,135.59,2.67317277]
[1641821569838,11.5434097,135.63,135.59,2.67317277]
[1641821570037,7.37272828,135.63,135.6,2.67317277]
[1641821570440,1.843,135.66,135.6,11.97517277]
[1641821570638,7.37082627,135.66,135.61,2.67317277]
[1641821571038,4.16950086,135.65,135.62,2.67317277]
[1641821571438,7.37082627,135.66,135.63,2.67317277]
[1641821571937,7.37082627,135.66,135.64,2.67317277]
[1641821572338,4.17013821,135.65,135.57,142.0912]
[1641821572538,11.54259471,135.65,135.57,142.0912]
[1641821572739,15.54259471,135.65,135.57,142.0912]
[1641821573039,4.0,135.64,135.58,1.98508685]
[1641821573238,1.843,135.63,135.58,1.98508685]
[1641821573438,6.01313821,135.64,135.58,1.98508685]
[1641821573839,4.17013821,135.63,135.58,1.98508685]
[1641821574440,4.17013821,135.63,135.58,5.98508685]
[1641821574641,7.3724565,135.65,135.58,5.98508685]
[1641821575140,7.3724565,135.65,135.59,1.98508685]
[1641821575340,7.3724565,135.65,135.59,5.98508685]
[1641821575542,7.3724565,135.65,135.59,1.98508685]
[1641821575740,7.3724565,135.65,135.59,10.75508685]
[1641821576141,7.3724565,135.65,135.6,1.98508685]
[1641821576843,1.843,135.66,135.6,1.98508685]
[1641821577043,5.843,135.66,135.6,1.98508685]
[1641821577243,1.843,135.66,135.6,1.98508685]
[1641821577443,4.17023036,135.65,135.58,1.98508685]
[1641821578343,4.17023036,135.66,135.58,1.98508685]
[1641821578643,1.843,135.67,135.58,1.98508685]
[1641821578942,7.3713696,135.65,135.58,1.98508685]
[1641821579543,4.16980656,135.64,135.58,1.98508685]
[1641821579745,9.2154565,135.63,135.58,1.98508685]
[1641821579945,21.2034565,135.63,135.58,1.98508685]
[1641821580145,17.2034565,135.63,135.58,1.98508685]
[1641821580348,4.0,135.61,135.58,1.98508685]
[1641821580649,1.843,135.6,135.58,1.98508685]
[1641821580848,1.843,135.61,135.58,1.98508685]
[1641821581048,1.843,135.61,135.56,1.98508685]
[1641821581247,5.843,135.62,135.56,1.98508685]
[1641821581451,4.0,135.58,135.55,1.98508685]
[1641821581650,4.0,135.56,135.55,1.98508685]
[1641821581848,11.37680732,135.56,135.55,8.685e-05]
[1641821582050,11.37680732,135.56,135.51,15.46975906]
[1641821582250,1.844,135.55,135.51,15.46975906]
[1641821582549,9.827,135.55,135.51,15.46975906]
[1641821582750,9.827,135.55,135.49,71.0384]
[1641821583252,9.827,135.55,135.5,1.57074866]
[1641821584051,13.827,135.55,135.5,1.57074866]
[1641821584252,1.844,135.55,135.5,9.78774866]
[1641821584452,1.844,135.58,135.5,9.78774866]
[1641821584653,7.37463127,135.59,135.5,9.78774866]
[1641821585052,7.37463127,135.59,135.51,1.57074866]
[1641821585551,7.37463127,135.59,135.51,17.04050772]
[1641821585552,4.17207138,135.58,135.51,17.04050772]
[1641821585953,4.17207138,135.58,135.52,1.57074866]
[1641821586652,4.17207138,135.58,135.52,4.02210145]
[1641821586653,4.0,135.57,135.52,4.02210145]
[1641821586855,7.37789582,135.53,135.52,4.02210145]
[1641821587057,13.55189582,135.53,135.52,4.02210145]
[1641821587353,13.55189582,135.53,135.52,2.45135279]
[1641821587555,13.55189582,135.53,135.49,71.0384]
[1641821588553,13.55189582,135.53,135.5,2.45517193]
[1641821588854,4.0,135.51,135.5,2.45517193]
[1641821589455,11.37925691,135.51,135.5,7.193e-05]
[1641821589955,15.55331476,135.51,135.47,15.46975906]
[1641821590157,5.845,135.5,135.45,15.46975906]
[1641821590355,7.38279808,135.46,135.45,15.46975906]
[1641821590556,15.69779808,135.46,135.45,5.906e-05]
[1641821590957,15.69779808,135.46,135.42,41.28405091]
[1641821591156,15.69779808,135.46,135.39,67.6112]
[1641821592056,15.69779808,135.46,135.4,9.9945039]
[1641821592760,19.69779808,135.46,135.4,9.9945039]
[1641821593259,15.69779808,135.46,135.4,9.9945039]
[1641821595663,15.69779808,135.46,135.39,67.6112]
[1641821596764,17.54379808,135.46,135.39,67.6112]
[1641821596964,4.0,135.45,135.37,71.307]
[1641821597164,5.846,135.44,135.37,71.307]
[1641821597564,4.0,135.43,135.37,71.307]
[1641821597765,1.846,135.42,135.37,71.307]
[1641821598566,5.846,135.42,135.37,71.307]
[1641821598764,7.38443361,135.41,135.37,71.307]
[1641821598963,7.38443361,135.41,135.34,135.2494]
[1641821599866,7.38634265,135.38,135.34,65.6943]
[1641821600068,17.75634265,135.38,135.31,66.6169]
[1641821600468,15.91034265,135.38,135.31,66.6169]
[1641821601368,7.38634265,135.38,135.31,66.6169]
[1641821601768,7.38497895,135.4,135.31,66.6169]
[1641821601966,7.38497895,135.4,135.32,4.0]
[1641821602168,7.38497895,135.4,135.32,5.57433663]
[1641821602367,33.53991581,135.43,135.32,1.57433663]
[1641821602668,7.38579711,135.39,135.33,1.57433663]
[1641821603068,7.38579711,135.39,135.32,11.50943092]
[1641821603469,7.38579711,135.39,135.33,1.57433663]
[1641821604372,7.38579711,135.39,135.32,1.57433663]
[1641821604570,1.846,135.38,135.32,1.57433663]
[1641821604771,7.38770686,135.35,135.32,1.57433663]
[1641821604971,15.68570686,135.35,135.32,1.57433663]
[1641821605371,15.68570686,135.35,135.31,1.57433663]
[1641821608173,19.68570686,135.35,135.31,1.57433663]
[1641821608374,7.38934457,135.32,135.31,1.57433663]
[1641821608875,7.38934457,135.32,135.29,1.57433663]
[1641821609374,7.39070988,135.3,135.29,1.57433663]
[1641821610274,13.54770988,135.3,135.23,110.77795091]
[1641821610574,13.54770988,135.3,135.24,9.96333914]
[1641821610973,13.54770988,135.3,135.24,13.96333914]
[1641821611177,13.54770988,135.3,135.24,9.96333914]
[1641821611378,7.39070988,135.3,135.24,9.96333914]
[1641821612277,7.38879858,135.33,135.28,4.0]
[1641821612478,7.38716111,135.36,135.28,4.0]
[1641821612678,1.847,135.37,135.33,4.0]
[1641821612878,7.38579711,135.39,135.33,7.107]
[1641821613180,7.38579711,135.39,135.33,11.107]
[1641821613377,7.38579711,135.39,135.33,7.107]
[1641821615380,7.38579711,135.39,135.3,9.96333914]
[1641821615580,14.49779711,135.39,135.3,9.96333914]
[1641821616981,14.49779711,135.39,135.32,4.0]
[1641821617180,4.17765197,135.38,135.32,4.0]
[1641821617380,4.17765197,135.38,135.3,9.96333914]
[1641821617581,14.49779711,135.39,135.3,13.96333914]
[1641821617981,14.49779711,135.39,135.31,4.0]
[1641821618481,14.49779711,135.39,135.3,13.96333914]
[1641821618782,14.49779711,135.39,135.3,70.37369186]
[1641821619783,14.49779711,135.39,135.3,66.37369186]
[1641821619981,14.49779711,135.39,135.31,4.0]
[1641821620585,14.49779711,135.39,135.34,15.53737344]
[1641821621085,14.49779711,135.39,135.35,4.0]
[1641821621289,1.847,135.4,135.36,4.0]
[1641821621493,1.846,135.44,135.35,12.658]
[1641821621988,4.1760723,135.43,135.35,8.658]
[1641821622195,4.1760723,135.43,135.37,15.53737344]
[1641821622389,11.55941548,135.43,135.37,15.53737344]
[1641821622789,1.846,135.42,135.37,15.53737344]
[1641821622988,6.0220723,135.42,135.37,15.53737344]
[1641821623390,7.38334318,135.43,135.37,15.53737344]
[1641821623789,4.17574785,135.42,135.37,15.53737344]
[1641821623990,4.17574785,135.42,135.38,15.53737344]
[1641821624990,7.38334318,135.43,135.38,15.53737344]
[1641821625191,7.38334318,135.43,135.39,1.2431583]
[1641821625792,7.38334318,135.43,135.39,16.78053174]
[1641821626193,4.17575597,135.42,135.39,16.78053174]
[1641821626594,4.17575597,135.42,135.4,1.2431583]
[1641821626994,7.38334318,135.43,135.4,1.2431583]
[1641821627394,7.38334318,135.43,135.4,8.9651583]
[1641821627595,7.38334318,135.43,135.4,12.9651583]
[1641821627794,7.38198059,135.46,135.4,12.9651583]
[1641821627994,7.38198059,135.46,135.41,1.2431583]
[1641821628394,4.17501507,135.45,135.41,1.2431583]
[1641821629197,4.17501507,135.45,135.41,16.78053174]
[1641821629998,4.17501507,135.45,135.42,3.70606537]
[1641821630497,4.17501507,135.45,135.43,1.2431583]
[1641821630798,4.17501507,135.45,135.43,3.70606537]
[1641821630999,7.38198059,135.46,135.43,3.70606537]
[1641821631503,7.38198059,135.46,135.44,1.2431583]
[1641821631700,7.37952919,135.5,135.44,3.70606537]
[1641821632399,4.1741645,135.49,135.45,1.2431583]
[1641821632801,4.1741645,135.49,135.45,3.70606537]
[1641821633202,4.1741645,135.49,135.46,1.2431583]
[1641821633403,1.845,135.48,135.46,1.2431583]
[1641821633602,19.6726185,135.48,135.46,3.70606537]
[1641821633802,7.38225306,135.47,135.43,25.50071258]
[1641821634002,7.38225306,135.47,135.43,20.03071258]
[1641821634003,11.38388836,135.44,135.43,20.03071258]
[1641821634202,18.89588836,135.44,135.43,20.03071258]
[1641821634402,14.89588836,135.44,135.43,20.03071258]
[1641821634603,14.89588836,135.44,135.38,9.96333914]
[1641821634804,13.05088836,135.44,135.39,4.0]
[1641821635003,7.38388836,135.44,135.39,0.98206]
[1641821636003,5.846,135.5,135.39,0.98206]
[1641821636204,7.38116327,135.47,135.39,0.98206]
[1641821636706,4.17520088,135.46,135.39,0.98206]
[1641821637507,4.17520088,135.46,135.43,4.0]
[1641821637708,4.17520088,135.46,135.43,11.676]
[1641821637910,7.38116327,135.47,135.43,7.676]
[1641821638309,7.38116327,135.47,135.44,0.98206]
[1641821639611,7.38116327,135.47,135.4,4.98206]
[1641821640009,7.38116327,135.47,135.41,0.98206]
[1641821640416,7.38116327,135.47,135.41,4.98206]
[1641821640610,7.38116327,135.47,135.41,12.94706]
[1641821641011,7.38116327,135.47,135.42,0.98206]
[1641821641211,7.38116327,135.47,135.42,4.98206]
[1641821641610,1.845,135.51,135.44,4.0]
[1641821641810,1.845,135.56,135.45,70.4568]
[1641821642110,1.845,135.56,135.45,137.0978]
[1641821642311,4.17379262,135.55,135.46,0.98206]
[1641821642509,4.17379262,135.55,135.46,4.98206]
[1641821642711,7.37871241,135.53,135.46,0.98206]
[1641821642913,7.37871241,135.53,135.46,4.98206]
[1641821643112,4.17379262,135.52,135.46,4.98206]
[1641821643712,4.17379262,135.52,135.47,0.98206]
[1641821644012,4.17379262,135.55,135.47,11.93106]
[1641821644211,4.17379262,135.55,135.47,7.93106]
[1641821644411,4.17379262,135.55,135.48,0.98206]
[1641821645414,4.17379262,135.55,135.47,0.98206]
[1641821649720,4.17379262,135.55,135.51,4.0]
[1641821649921,4.17379262,135.55,135.51,12.683]
[1641821650320,4.17379262,135.55,135.52,4.0]
[1641821650522,4.17379262,135.58,135.52,4.98206]
[1641821650723,4.17379262,135.58,135.52,70.18706]
[1641821650922,4.17379262,135.58,135.53,0.98206]
[1641821652521,4.17379262,135.58,135.53,4.98206]
[1641821653227,4.17379262,135.58,135.54,4.0]
[1641821653425,4.17379262,135.58,135.54,13.194]
[1641821653625,4.17379262,135.58,135.55,4.0]
[1641821653825,4.17379262,135.58,135.55,0.98206]
[1641821654223,7.37327189,135.63,135.55,4.98206]
[1641821654424,4.17159859,135.62,135.55,0.98206]
[1641821655025,6.01459859,135.62,135.55,0.98206]
[1641821655225,7.3749032,135.6,135.55,0.98206]
[1641821655425,1.843,135.59,135.54,0.98206]
[1641821655831,6.01459859,135.59,135.56,0.98206]
[1641821656228,4.17159859,135.58,135.54,0.98206]
[1641821656829,4.17159859,135.58,135.53,0.98206]
[1641821657228,4.17159859,135.59,135.55,0.98206]
[1641821657929,4.17159859,135.59,135.55,4.0]